Cogmind - Beta 13 @@@ ROGUE MODE // 2024.03.31 @ 23:07:53 Player: fippe Result: Destroyed by S-10 Pest with Light Assault Rifle Performance ------------- Evolutions (2) 1000 Regions Visited (3) 600 Robots Destroyed (34) 170 Value Destroyed (769) 769 Prototype IDs (2) 40 Alien Tech Used (0) 0 Bonus (0) 0 TOTAL SCORE: 2579 Bonus ------- None Cogmind --------- Core Integrity 0/550 Matter 261/300 Energy 88/100 System Corruption 0% Temperature Hot (228) Movement Core (50) Location -8/Materials Parts ------- > --- POWER (1) -------- (None) > --- PROPULSION (3) --- (None) > --- UTILITY (5) ------ Signal Interpreter Core Shielding > --- WEAPON (2) ------- (None) > --- INVENTORY (5) ---- Light Deuterium Engine Medium Matter Pod (100) Datajack Peak State ------------ > --- POWER ------------ Improved Ion Engine > --- PROPULSION ------- Light Treads Light Treads > --- UTILITY ---------- Medium Storage Unit Sensor Array Signal Interpreter Recoil Stabilizer > --- WEAPON ----------- Light Cannon Plasma Cutter > --- INVENTORY -------- Light Ion Engine Light Treads Medium Matter Pod Assault Rifle Light Assault Rifle Light Cannon Light Cannon Datajack [Rating: 13] Favorites ----------- Power Improved Ion Engine Engine Improved Ion Engine Power Core Nuclear Core Propulsion Light Treads Treads Light Treads Utility Sensor Array Device Sensor Array Storage Medium Storage Unit Processor Signal Interpreter Protection Core Shielding Weapon Light Cannon Energy Gun Advanced Beam Rifle Ballistic Gun Assault Rifle Ballistic Cannon Light Cannon Special Weapon Plasma Cutter Build | -11 -10 -9 -8 ------- Run | Yrd Mat Mat Mat Slots Evolved 4 | . . 2 2 Power . | . . . . Propulsion 1 | . . . 1 Utility 3 | . . 2 1 Weapon . | . . . . Parts Attached 31 | 6 5 11 9 Power 5 | 1 . 2 2 Engine 4 | 1 . 2 1 Core 1 | . . . 1 Reactor . | . . . . Propulsion 6 | 2 1 3 . Treads 6 | 2 1 3 . Leg . | . . . . Wheel . | . . . . Hover . | . . . . Flight . | . . . . Utility 9 | 1 2 4 2 Device 4 | . 1 2 1 Storage 3 | 1 1 1 . Processor 1 | . . 1 . Hackware . | . . . . Protection 1 | . . . 1 Artifact . | . . . . Weapon 11 | 2 2 2 5 Energy Gun 1 | . . . 1 Energy Cannon . | . . . . Ballistic Gun 4 | 2 . . 2 Ballistic Cannon 4 | . 2 1 1 Launcher . | . . . . Special Weapon 2 | . . 1 1 Impact Weapon . | . . . . Slashing Weapon . | . . . . Piercing Weapon . | . . . . Special Melee Weapon . | . . . . Unidentified Prototypes . | . . . . Parts Lost 13 | . . . 13 Power 2 | . . . 2 Propulsion 2 | . . . 2 Utility 2 | . . . 2 Weapon 7 | . . . 7 Highest Loss Streak 10 | . . . 10 To Critical Strikes . | . . . . Average Slot Usage (%) 94 | . 97 98 61 Engine 10 | . 14 11 4 Treads 21 | . 28 22 10 Device 18 | . 11 20 17 Storage 11 | . 14 11 5 Processor 8 | . . 11 9 Ballistic Gun 2 | . 12 . 3 Ballistic Cannon 19 | . 15 21 6 Naked Turns . | . . . . Heaviest Build 26 | 11 20 25 26 Greatest Support 40 | 40 40 40 40 Greatest Overweight (x) . | . . . . Average Overweight (x) . | . . . . Largest Inventory Capacity 10 | 8 10 10 10 Average Capacity 9 | 6 9 10 8 Most Carried 10 | 1 8 10 8 Average Carried 6 | . 5 7 5 Final Capacity 10 | 8 10 10 5 Final Carried 8 | 1 8 8 3 Class Distribution -------------------- 74% | Mutant 22% | Scavenger-Mutant Dominant Class ---------------- Mutant | -10/Materials Mutant | -9/Materials Mutant | -8/Materials Resources | -11 -10 -9 -8 ----------- Run | Yrd Mat Mat Mat Matter Collected 1197 | 217 120 800 60 Remotely . | . . . . Salvage Created 943 | . 94 713 136 Parts 56 | . 9 36 11 Haulers Intercepted 1 | . . 1 . Recyclers Shooed 4 | . . 4 . Parts Field Recycled . | . . . . Retrieved Matter . | . . . . Parts Self-Destructed . | . . . . Prevented . | . . . . Kills | -11 -10 -9 -8 ------- Run | Yrd Mat Mat Mat Combat Hostiles Destroyed 21 | . 2 15 4 Guns 3 | . . . 3 Cannons 18 | . 2 15 1 Classes Destroyed 7 | . 3 4 . Worker 4 | . 1 3 . Hauler 1 | . . 1 . Recycler 3 | . . 3 . Watcher 5 | . 2 3 . Swarmer 8 | . . 6 2 Grunt 9 | . 2 6 1 Sentry 4 | . . 3 1 Best Kill Streak 5 | . 2 5 2 Combat Bots Only 4 | . 2 4 2 Max Kills in Single Turn 2 | . 1 2 1 Gunslinging . | . . . . Exploded . | . . . . Melee . | . . . . Uniques/NPCs Destroyed . | . . . . Combat | -11 -10 -9 -8 -------- Run | Yrd Mat Mat Mat Hostile Shots Fired 248 | . 11 88 149 Missed 78 | . 5 31 42 Damage Taken 2284 | . 135 593 1556 Core 661 | . 11 100 550 Absorbed by Shields . | . . . . Redirected to Shielding 25 | . . . 25 Core Remaining (%) 90 | 100 95 75 . Volleys Fired 119 | . 15 71 33 Largest 2 | . 2 2 2 Hottest 70 | . 70 70 70 Shots Fired 203 | . 22 138 43 Gun 35 | . 4 . 31 Cannon 163 | . 18 134 11 Launcher . | . . . . Special 5 | . . 4 1 Kinetic 183 | . 22 134 27 Thermal 20 | . . 4 16 Explosive . | . . . . Electromagnetic . | . . . . Robot Hit Streak 7 | . 5 7 6 Robot Miss Streak 5 | . 5 4 4 Penetration Max . | . . . . Secondary Targets . | . . . . Shots Hit Robots 104 | . 11 66 27 Core Hits 41 | . 5 25 11 Critical Kills . | . . . . Critical Parts Destroyed . | . . . . Critical Strikes 5 | . 1 4 . Blast 5 | . 1 4 . Melee Attacks . | . . . . Impact . | . . . . Slashing . | . . . . Piercing . | . . . . Sneak Attacks . | . . . . Combat Hostiles . | . . . . Follow-up Attacks . | . . . . Damage Inflicted 1875 | . 199 1243 433 Guns 323 | . 14 . 309 Cannons 1528 | . 185 1237 106 Explosions . | . . . . Melee . | . . . . Ramming 13 | . . 6 7 Kinetic 1691 | . 199 1237 255 Thermal 171 | . . . 171 Explosive . | . . . . Electromagnetic . | . . . . Impact . | . . . . Slashing . | . . . . Piercing . | . . . . Highest Corruption . | . . . . Average Corruption . | . . . . Corruption Purged . | . . . . Corruption Blocked . | . . . . Overload Shots . | . . . . Overflow Damage 54 | . 6 48 . Projectiles 54 | . 6 48 . Explosions . | . . . . Melee . | . . . . Knockbacks 13 | . 3 8 2 Impact . | . . . . Kinetic 13 | . 3 8 2 Secondary . | . . . . Self-Inflicted Damage 75 | . 72 . 3 Shots 1 | . 1 . . Rammed 3 | . . 1 2 Targets Rammed 3 | . . 1 2 Kicked . | . . . . Crushed . | . . . . Highest Temperature 220 | . 12 48 220 Average Temperature 24 | . 5 16 61 Received Heat Transfer 966 | . 36 156 774 Siege Activations . | . . . . Robots Corrupted . | . . . . Combat Hostiles . | . . . . Parts Fried . | . . . . Impact Corruptions . | . . . . Robots Melted . | . . . . Combat Hostiles . | . . . . Parts Melted . | . . . . Heat Transferred 333 | . . . 333 Parts Sabotaged . | . . . . Parts Stolen . | . . . . Parts Stripped . | . . . . Power Chain Reactions . | . . . . Alert | -11 -10 -9 -8 ------- Run | Yrd Mat Mat Mat Peak Influence 257 | . 165 257 106 Initial 69 | . . 69 61 Average 103 | . 62 126 51 Maximum Alert Level 1 | . . 1 . Low Security (%) 84 | 100 100 78 100 Level 1 15 | . . 21 . Level 2 . | . . . . Level 3 . | . . . . Level 4 . | . . . . Level 5 . | . . . . High Security . | . . . . Max Security . | . . . . Squads Dispatched 1 | . 1 . . Investigation . | . . . . Extermination . | . . . . Reinforcement 1 | . 1 . . Assault . | . . . . Garrison . | . . . . Intercept . | . . . . Searches Triggered . | . . . . Construction Impeded . | . . . . Haulers Reinforced . | . . . . Active Scanning Responses . | . . . . Cargo Convoy Interrupts . | . . . . Stealth | -11 -10 -9 -8 --------- Run | Yrd Mat Mat Mat Distress Signals 4 | . . 3 1 Communications Jammed . | . . . . Distress Signals . | . . . . Times Spotted 39 | . 6 18 15 Peak Tracking Total 8 | . 2 4 8 Tactical Retreats 1 | . . . 1 Traps | -11 -10 -9 -8 ------- Run | Yrd Mat Mat Mat Traps Triggered . | . . . . Indirectly . | . . . . Trap Hack Attempts . | . . . . Triggered . | . . . . Disarmed . | . . . . Reprogrammed . | . . . . Reused . | . . . . Traps Extracted . | . . . . Installed . | . . . . Triggered . | . . . . Machines | -11 -10 -9 -8 ---------- Run | Yrd Mat Mat Mat Machines Disabled 6 | . 3 1 2 Max in Single Turn 2 | . 2 1 1 Machines Repaired . | . . . . Machines Dismantled . | . . . . Machines Sabotaged . | . . . . Overloaded Fab Kills . | . . . . Hacking | -11 -10 -9 -8 --------- Run | Yrd Mat Mat Mat Machines Accessed 1 | . . 1 . Terminals 1 | . . 1 . Fabricators . | . . . . Repair Stations . | . . . . Recycling Units . | . . . . Scanalyzers . | . . . . Garrison Access . | . . . . Total Hacks 4 | . . 4 . Successful 3 | . . 3 . Failed 1 | . . 1 . Catastrophic . | . . . . Database Lockouts . | . . . . Manual . | . . . . Terminals 4 | . . 4 . Fabricators . | . . . . Repair Stations . | . . . . Recycling Units . | . . . . Scanalyzers . | . . . . Garrison Access . | . . . . Terminal Hacks 3 | . . 3 . Prototype ID Bank 1 | . . 1 . Maintenance Status 1 | . . 1 . Zone Layout 1 | . . 1 . Fabricator Hacks . | . . . . Repair Station Hacks . | . . . . Recycling Unit Hacks . | . . . . Scanalyzer . | . . . . Garrison Access Hacks . | . . . . Unauthorized Hacks . | . . . . Terminals . | . . . . Fabricators . | . . . . Repair Stations . | . . . . Recycling Units . | . . . . Scanalyzers . | . . . . Garrison Access . | . . . . Data Cores Recovered . | . . . . Used . | . . . . Hacking Detections . | . . . . Full Trace Events . | . . . . Feedback Events . | . . . . Feedback Blocked . | . . . . Robot Schematics Acquired . | . . . . Robots Built . | . . . . Authchips . | . . . . Time . | . . . . Total Robot Build Rating . | . . . . Part Schematics Acquired . | . . . . Parts Built . | . . . . Authchips . | . . . . Time . | . . . . Total Part Build Rating . | . . . . Parts Repaired . | . . . . Time . | . . . . Parts Recycled . | . . . . Recycled Matter . | . . . . Retrieved Matter . | . . . . Retrieved Components . | . . . . Parts Scanalyzed . | . . . . Part Schematics Acquired . | . . . . Parts Damaged . | . . . . Bothacking | -11 -10 -9 -8 ------------ Run | Yrd Mat Mat Mat Used RIF Installer . | . . . . Robots Hacked . | . . . . Non-combat . | . . . . Combat . | . . . . Robot Hacks Applied . | . . . . Relay Couplers Released . | . . . . Fabnet Peak Effective % . | . . . . Robots Rewired . | . . . . Allies Hacked . | . . . . Hacks Repelled . | . . . . Allies | -11 -10 -9 -8 -------- Run | Yrd Mat Mat Mat Total Allies . | . . . . Largest Group . | . . . . Highest-Rated Group . | . . . . Highest-Rated Ally . | . . . . Total Orders . | . . . . Ally Attacks . | . . . . Total Damage . | . . . . Kills . | . . . . Allies Corrupted . | . . . . Allies Melted . | . . . . Intel | -11 -10 -9 -8 ------- Run | Yrd Mat Mat Mat Robot Analysis Total . | . . . . Derelict Logs Recovered . | . . . . Drone Launches . | . . . . Drone Recoveries . | . . . . Exploration | -11 -10 -9 -8 ------------- Run | Yrd Mat Mat Mat Turns Passed 1752 | 75 301 1207 169 Spaces Moved 842 | 43 150 577 72 Core 37 | 2 . . 35 Treads 805 | 41 150 577 37 Legs . | . . . . Wheels . | . . . . Hover . | . . . . Flight . | . . . . Fastest Speed 50 | 50 160 160 50 Average Speed 155 | 154 160 160 106 Slowest Speed 160 | 160 160 160 160 Overloaded Moves . | . . . . Propulsion Burnouts . | . . . . Robots Hopped . | . . . . Cave-ins Triggered . | . . . . Exploration Rate (%) 20 | 4 25 40 13 Regions Visited 3 Branch Regions . Pre-discovered Areas . | . . . . Known Exits Taken 1 | . . 1 . Unknown Exits Taken 2 | 1 1 . . Scrap Searched . | . . . . Spaces Dug . | . . . . Terrain Destroyed 22 | . 22 . . Melee . | . . . . Projectile . | . . . . AOE 22 | . 22 . . Terrain Rammed . | . . . . Walls Destroyed . | . . . . Machines Disabled . | . . . . Actions | -11 -10 -9 -8 --------- Run | Yrd Mat Mat Mat Total 1080 | 49 188 720 123 Wait 54 | . 10 44 . Move 839 | 42 149 576 72 Hop . | . . . . Pick Up 20 | 1 8 7 4 Fast Attach 7 | 6 . 1 . Attach 13 | . 1 3 9 Detach 1 | . . 1 . Swap 11 | . 4 7 . Drop 13 | . 1 9 3 Fire 119 | . 15 71 33 Melee . | . . . . Ram 2 | . . . 2 Kick . | . . . . Crush 1 | . . 1 . Escape Stasis . | . . . . Rewire . | . . . . Trap . | . . . . Miscellaneous . | . . . . Route ------- -11/Scrapyard -10/Materials (discovered 2 exits: *Mat / [*Min]) -9/Materials (discovered 3 exits: *Mat x2 / *Min) -8/Materials History --------- Turn | Location | Event 7 | -11/Scrapyard | Discovered new exit (range 15) 76 | -11/Scrapyard | Entered Materials 218 | -10/Materials | Discovered new exit (range 15) 309 | -10/Materials | Build established: Mutant 369 | -10/Materials | Discovered new exit (range 3) 377 | -10/Materials | Entered another Materials area 377 | -9/Materials | Evolved 2 slots: Utility x2 548 | -9/Materials | Discovered new exit (range 10) 581 | -9/Materials | Identified exit to Mines 706 | -9/Materials | Discovered new exit (range 14) 725 | -9/Materials | Identified exit to Materials 1118 | -9/Materials | Discovered exit to Materials (range 12) 1532 | -9/Materials | Build established: Scavenger-Mutant 1584 | -9/Materials | Entered another Materials area 1584 | -8/Materials | Evolved 2 slots: Propulsion x1, Utility x1 1700 | -8/Materials | Core integrity fell below 50% 1725 | -8/Materials | Lost 10 parts (1p2n1u6w) 1739 | -8/Materials | Core integrity fell below 20% 1753 | -8/Materials | Destroyed by S-10 Pest with Light Assault Rifle Last Messages --------------- 01698_ M-13 Machinist repairs G-47 Trooper. 01698_ R-06 Scavenger collects Carbon-fiber Leg. 01699_ Acquired 55 matter. 01699_ Slammed into K-01 Serf. 01701_ Dropped Broken Sensor Array. 01702_ R-06 Scavenger collects Med. Storage Unit. 01703_ R-06 Scavenger collects Imp. Ion Engine. 01707_ Acquired Lgt. Deuterium Engine. 01711_ K-01 Serf collects debris. 01712_ Acquired Adv. Beam Rifle. 01715_ K-01 Serf collects debris. 01723_ Destroyed Flight Unit. 01726_ Acquired Nuclear Core. 01731_ Integration Channel disabled. 01733_ S-10 Pest destroyed. 01739_ Destroyed Flight Unit. 01741_ Structural Scanner destroyed. 01747_ Nuclear Core destroyed. 01751_ Adv. Beam Rifle destroyed. Map ----- +----------------------------------------------------+ | ?????????????## """ """ "" ##????????? | | ????????????? # """ """ %""" # ????????? | | ????????????? ##### # ????????? | | ????????????? ##### # ????????? | | ?????????????????## %"" """! """ # ????????? | | ?????????????????## """ """ """ # ????????? | | ?????????????????## """ """ """ # ????????? | | ?????????????????## " +[????????? | | ?????????????????## "%"# ??????? | | ?????????????????## """ """ """ " # ??????? | | ??????????????##### """ """ """ # ?????? | | ?????????????? #### """ """ """ # ????? | | ??????????? # ? ???? | | ??????????? % # ?? ???? | | ??????????? ##????????? | | ??????????? #####+########## ##????????? | | ??????????????## # # ##????????? | | ?????????????????"""??? # " # ##????????? | | ??????????????## ""???? # """ # [[! ######????? | | ??????????????## ?????? # """ # [ ! ######????? | | ??????????????## ?????? # """r# [[! ^ ?? | | ??????????????????????? /gg"" + | | ??????????????????????? # """g# ^ ? | | ??????????????????????? #*"" *####+### ## ? | | ??????????????????????? #g" g## # ## ?? | | ???????????????????????+#@s ##??????? ##??[?!?? | | ??????????????????????? # ##??????? ##??????? | | ??????????????????????? # ##???????? ##??????? | | ??????????????????????? ########???????? ##??????? | | ??????????????????????? ########???????? ##??????? | | ?????????????????????????????????????????????????? | | ?????????????????????????????????????????????????? | | ?????????????????????????????????????????????????? | | ?????????????????????????????????????????????????? | | ?????????????????????????????????????????????????? | | ?????????????????????????????????????????????????? | | ?????????????????????????????????????????????????? | | ?????????????????????????????????????????????????? | | ?????????????????????????????????????????????????? | | ?????????????????????????????????????????????????? | | ?????????????????????????????????????????????????? | | ?????????????????????????????????????????????????? | | ?????????????????????????????????????????????????? | | ?????????????????????????????????????????????????? | | ?????????????????????????????????????????????????? | | ?????????????????????????????????????????????????? | | ?????????????????????????????????????????????????? | | ?????????????????????????????????????????????????? | | ?????????????????????????????????????????????????? | | ?????????????????????????????????????????????????? | +----------------------------------------------------+ Best States ------------- Heat Dissipation 31 Energy Generation 14 Energy Capacity 265 Matter Stores 300 Matter Capacity 400 Sight Range 16 Robot Scan Range 14 Terrain Scan Density 10 Core Shielding 20 Evasion (%) 50 Recoil Reduction 6 Item Schematics ----------------- None Robot Schematics ------------------ None Fabricated ------------ Nothing Alien Tech Used ----------------- None Achievements -------------- None Challenges ------------ None Game ------ Seed ThunderThiefPlating Manual? 0 Play Time 00:22:50 Cumulative 5.8 hours Start 2024.03.31 @ 22:47:23 End 2024.03.31 @ 23:07:53 Sessions 1 Manual Loads 0 Difficulty Rogue Special Mode None Game No. 7 Rogue 7 Adventurer 0 Explorer 0 Win Type - Total 0 Types 0/0/0/0/0/0/0/0/0 Lore% 14 Gallery% 13 Achievement% 14 Wizard Run 0 Options --------- Layout 1 ASCII 0 Keyboard 0 Movement Mouse Keybinds 0 Fullscreen 2 Font 32/SmallcapsGlow Map View 50x35 Zoom Use 0% Tactical HUD 1 Map Filters NONE Filters NONE Steam 1 RUN: b5880793-a9d8-45d5-a3ef-aac75fedfde1